Cogmind - Beta 15 @@@ ROGUE MODE // 2025.05.15 @ 23:01:00 Player: Zaros426 Result: Destroyed by S-27 Virus with Autogun Performance ------------- Evolutions (4) 2000 Regions Visited (19) 3800 Robots Destroyed (314) 1570 Value Destroyed (13610) 13610 Prototype IDs (62) 1240 Alien Tech Used (0) 0 Bonus (9732) 9732 TOTAL SCORE: 31952 Bonus ------- High Alert Combat Kills 2341 Follower Combat Kills 3101 Entered Garrisons 800 Used RIF Installer 2500 Network Hubs Disabled 400 Aligned with FarCom 300 Met R17 at Cetus 500 Friendly Fire -210 Cogmind --------- Core Integrity 0/850 Matter 195/300 Energy 350/350 System Corruption 12% Temperature Cool (0) Movement Walking (125) Ox1 Location -6/Hub_04(d) Parts ------- > --- POWER (1) -------- Quantum Reactor > --- PROPULSION (3) --- Potential Leg Potential Leg > --- UTILITY (8) ------ Huge Storage Unit Modified TNC Improved Targeting Computer Centrium Medium Armor Plating Centrium Medium Armor Plating Relay Coupler [NC] (42) Relay Coupler [Hunter] (48) Improved Dynamic Insulation System > --- WEAPON (3) ------- (None) > --- INVENTORY (25) --- Improved Heavy Treads Improved Heavy Treads Improved Cryofiber Web High-capacity Matter Pod (0) Experimental Sensor Array Advanced Terrain Scan Processor Advanced ECM Suite Centrium Medium Armor Plating Centrium Medium Armor Plating Improved Hacking Suite Improved Hacking Suite Improved Hacking Suite Improved Arc Projector Advanced Variable Charge Gun Minigun Remote Datajack Peak State ------------ > --- POWER ------------ Quantum Reactor > --- PROPULSION ------- Armored Medium Treads Improved Heavy Treads > --- UTILITY ---------- Huge Storage Unit Modified TNC Improved Targeting Computer Centrium Medium Armor Plating Centrium Medium Armor Plating Relay Coupler [NC] Relay Coupler [Hunter] Supersonic Drone Bay > --- WEAPON ----------- KE Penetrator Advanced KE Penetrator Advanced KE Penetrator > --- INVENTORY -------- Quantum Reactor Improved Heavy Treads Improved Heavy Treads Centrium Heavy Treads Potential Leg Potential Leg Improved Cryofiber Web Large Battery High-capacity Matter Pod Experimental Sensor Array Advanced Terrain Scan Processor Advanced ECM Suite Centrium Medium Armor Plating Centrium Medium Armor Plating Force Field Improved Hacking Suite Improved Hacking Suite Improved Hacking Suite Improved Dynamic Insulation System Improved System Restoration Module Advanced Variable Charge Gun Remote Datajack [Rating: 108] Favorites ----------- Power Cooled Ion Engine Engine Cooled Ion Engine Power Core Fission Core Reactor Quantum Reactor Propulsion Armored Wheel Treads Light Treads Leg Flexi-carbon Leg Wheel Armored Wheel Flight Unit Improved VTOL Module Utility Huge Storage Unit Device Seismic Detector Storage Huge Storage Unit Processor Modified TNC Hackware Relay Coupler [Hunter] Protection Hardened Light Armor Plating Weapon Minigun Energy Gun Heavy EM Pulse Gun Energy Cannon Improved EM Pulse Cannon Ballistic Gun Minigun Launcher Advanced EMP Blaster Special Weapon Remote Datajack Slashing Weapon Axe Special Melee Weapon Datajack Build | -11 -10 -10 -9 -9 -9 -8 -8 -8 -8 -8 -7 -7 -7 -7 -6 -6 -6 -6 -6 ------- Run | Yrd Mat Min Mat Min Exi Min Mat Gar Mat Gar Fac Gar Fac Gar Fac Ext Cet Arc Hub Slots Evolved 8 | . . . 2 . . . 2 . . . 2 . . . 2 . . . . Power . | . . . . . . . . . . . . . . . . . . . . Propulsion 1 | . . . . . . . 1 . . . . . . . . . . . . Utility 6 | . . . 2 . . . . . . . 2 . . . 2 . . . . Weapon 1 | . . . . . . . 1 . . . . . . . . . . . . Parts Attached 181 | 7 10 3 39 1 3 . 3 11 11 8 3 10 . 12 23 12 10 1 14 Power 20 | 1 1 . 5 . . . . . . 1 . . . 2 5 3 1 . 1 Engine 11 | 1 1 . 4 . . . . . . . . . . 1 3 1 . . . Core 6 | . . . 1 . . . . . . 1 . . . . 2 2 . . . Reactor 3 | . . . . . . . . . . . . . . 1 . . 1 . 1 Propulsion 43 | 2 2 1 12 . . . 1 4 4 . . 1 . 3 3 1 2 . 7 Treads 24 | 2 . . 7 . . . 1 3 3 . . 1 . 3 1 . 2 . 1 Leg 3 | . . . . . . . . . . . . . . . . . . . 3 Wheel 15 | . 2 1 4 . . . . 1 1 . . . . . 2 1 . . 3 Hover . | . . . . . . . . . . . . . . . . . . . . Flight 1 | . . . 1 . . . . . . . . . . . . . . . . Utility 67 | 2 3 1 10 . 2 . 1 3 4 5 3 5 . 4 12 4 4 . 4 Device 18 | 1 . 1 3 . 1 . . 1 1 1 1 . . . 5 1 1 . 1 Storage 6 | 1 3 . 1 . . . . . . 1 . . . . . . . . . Processor 9 | . . . 2 . . . . . 1 . 2 . . . 2 1 . . 1 Hackware 17 | . . . . . . . 1 2 2 3 . 4 . 4 1 . . . . Protection 17 | . . . 4 . 1 . . . . . . 1 . . 4 2 3 . 2 Artifact . | . . . . . . . . . . . . . . . . . . . . Weapon 51 | 2 4 1 12 1 1 . 1 4 3 2 . 4 . 3 3 4 3 1 2 Energy Gun 14 | . . . 6 . . . . . 2 . . 1 . 2 . 2 1 . . Energy Cannon 4 | . . . . . . . . 3 . . . . . . 1 . . . . Ballistic Gun 21 | 2 3 1 4 . . . 1 . . . . 3 . . 1 1 2 1 2 Ballistic Cannon . | . . . . . . . . . . . . . . . . . . . . Launcher 3 | . . . 1 . . . . . 1 1 . . . . . . . . . Special Weapon 4 | . 1 . . . . . . 1 . 1 . . . 1 . . . . . Impact Weapon . | . . . . . . . . . . . . . . . . . . . . Slashing Weapon 4 | . . . 1 1 . . . . . . . . . . 1 1 . . . Piercing Weapon . | . . . . . . . . . . . . . . . . . . . . Special Melee Weapon 1 | . . . . . 1 . . . . . . . . . . . . . . Unidentified Prototypes 17 | . . . 5 . 1 . . . 3 . . . . . 2 1 4 . 1 Corrupted Parts 1 | . . . . . . . . . . . . . . . . . 1 . . System Corruption 2 | . . . . . . . . . . . . . . . . . 2 . . Parts Lost 29 | . 1 2 2 . . . . . . . . 3 . 2 2 6 1 . 10 Power 3 | . . . . . . . . . . . . . . . 1 1 . . 1 Propulsion 6 | . . . . . . . . . . . . 1 . . . 1 1 . 3 Utility 4 | . . 1 . . . . . . . . . . . . . 1 . . 2 Weapon 16 | . 1 1 2 . . . . . . . . 2 . 2 1 3 . . 4 Highest Loss Streak 7 | . 1 2 1 . . . . . . . . 2 . 1 2 2 1 . 7 To Critical Strikes 1 | . . . . . . . . . . . . . . 1 . . . . . Average Backups 21 | 1 12 16 23 24 24 25 24 24 25 24 25 24 25 23 21 20 21 21 21 Power . | . . . 1 2 1 1 1 1 1 . . . . . . . . 1 . Propulsion 5 | . 1 2 5 6 7 8 7 7 7 7 7 5 4 4 5 6 4 5 5 Utility 9 | . 5 9 7 8 8 9 8 8 8 8 9 10 12 11 9 10 12 13 12 Weapon 5 | . 4 5 7 7 7 6 5 7 7 8 9 8 8 7 5 3 2 1 1 Tool/Special . | . . . . . . . . . . . . . . . . . . . . Unused Backups 58 | . 2 2 17 . 1 . 4 4 2 . . 4 . 8 3 . . 4 7 Power 2 | . . . 1 . . . . 1 . . . . . . . . . . . Propulsion 9 | . . . 2 . . . 1 2 1 . . . . 2 . . . . 1 Utility 28 | . 1 2 3 . . . 1 1 . . . 3 . 6 3 . . 3 5 Weapon 18 | . 1 . 11 . 1 . 2 . 1 . . 1 . . . . . . 1 Tool/Special 1 | . . . . . . . . . . . . . . . . . . 1 . Average Slot Usage (%) 95 | . 99 99 96 100 96 100 99 100 98 99 90 97 100 96 89 87 90 93 92 Engine 6 | . 14 14 10 11 11 11 9 9 9 6 . . . 2 . 2 . . . Core 1 | . . . . . . . . . . 2 7 7 7 2 2 2 1 . . Reactor 1 | . . . . . . . . . . . . . . 1 2 . 4 6 6 Treads 12 | . 25 27 16 . . . 9 7 . . . 15 23 20 11 5 12 13 9 Wheel 7 | . 2 . 5 22 22 22 17 19 25 26 23 7 . . 1 6 . . 2 Device 5 | . 14 13 9 4 4 . . . 6 . 9 5 . . 2 3 5 6 6 Storage 9 | . 14 14 11 11 11 11 9 9 9 9 7 7 7 7 6 9 6 6 6 Processor 8 | . . . 10 11 11 11 9 5 . 9 11 15 15 11 8 9 13 13 13 Hackware 12 | . . . . . . . . 11 18 10 7 13 23 25 28 22 13 13 13 Protection 6 | . . . 8 17 17 22 17 8 1 6 . 1 . . 3 5 13 13 12 Energy Gun 3 | . . . 17 . . . . . . . . 3 7 2 5 3 10 . . Ballistic Gun 12 | . 23 27 4 21 1 21 27 14 22 16 7 11 10 11 3 . 6 19 19 Special Weapon 2 | . 4 . . . . . . 2 1 2 7 3 4 5 2 2 . . . Slashing Weapon 1 | . . . . . 6 . . 5 1 5 7 1 . 1 2 5 . . . Peak Build Rating 108 | 7 9 9 25 25 30 28 34 37 39 42 52 65 63 80 91 84 105 105 108 Average Rating 49 | 5 8 8 19 24 24 27 32 34 36 38 46 55 61 65 81 71 96 104 99 On Entrance 44 | . 7 9 9 25 25 27 28 34 34 37 42 52 60 63 80 73 84 105 105 Naked Turns . | . . . . . . . . . . . . . . . . . . . . Heaviest Build 138 | 13 50 50 135 104 102 104 107 114 111 114 101 123 108 113 119 128 138 138 138 Greatest Support 107 | 40 40 40 40 24 24 24 24 60 69 36 36 69 69 102 102 102 107 102 102 Greatest Overweight (x) 45 | 1 2 1 8 4 4 4 4 4 3 4 2 4 1 1 3 3 4 45 8 Average Overweight (x) 1 | . 1 1 2 4 3 4 4 2 2 2 2 1 1 . 1 1 1 6 1 Largest Inventory Capacity 25 | 8 20 20 25 25 25 25 25 25 25 25 25 25 25 25 25 25 25 25 25 Average Capacity 23 | 7 18 20 23 25 25 25 25 25 25 25 25 25 25 25 25 25 25 25 25 Most Carried 25 | 3 16 19 25 25 25 25 25 25 25 25 25 25 25 25 25 25 25 25 25 Average Carried 22 | . 12 16 23 24 24 25 24 24 24 24 24 24 25 24 24 24 24 24 23 Final Capacity 25 | 8 20 20 25 25 25 25 25 25 25 25 25 25 25 25 25 25 25 25 25 Final Carried 25 | 3 16 19 24 25 25 25 25 25 25 25 25 25 25 25 25 24 25 25 18 Class Distribution -------------------- 41% | Mutant 11% | Bothacker-Mutant 9% | Scavenger-Tank 8% | Bothacker-Gunner 8% | Botlord-Tank 5% | Bothacker-Tank 5% | Skirmisher Dominant Class ---------------- Mutant | -10/Materials Mutant | -10/Mines Mutant | -9/Materials Mutant | -9/Mines Mutant | -9/Exiles Mutant | -8/Mines Tank | -8/Materials Mutant | -8/Garrison Skirmisher | -8/Materials Mutant | -8/Garrison Mutant | -7/Factory Bothacker-Gunner | -7/Garrison Bothacker-Gunner | -7/Factory Bothacker-Gunner | -7/Garrison Botlord-Tank | -6/Factory Bothacker-Mutant | -6/Extension Bothacker-Tank | -6/Cetus Scavenger-Tank | -6/Archives Scavenger-Tank | -6/Hub_04(d) Resources | -11 -10 -10 -9 -9 -9 -8 -8 -8 -8 -8 -7 -7 -7 -7 -6 -6 -6 -6 -6 ----------- Run | Yrd Mat Min Mat Min Exi Min Mat Gar Mat Gar Fac Gar Fac Gar Fac Ext Cet Arc Hub Matter Collected 9692 | 278 703 378 836 244 75 48 78 379 699 828 40 590 5 1211 840 684 181 170 1425 Remotely . | . . . . . . . . . . . . . . . . . . . . Salvage Created 15758 | 106 1004 75 2653 215 . 13 170 476 767 1233 73 821 117 1944 1816 1514 80 240 2441 Parts 796 | 6 55 3 158 14 . 5 9 31 42 51 7 38 7 83 76 66 1 18 126 Haulers Intercepted 14 | . 2 . 6 . . . . . 4 . . . . . . . . . 2 Recyclers Shooed 9 | . 2 . 1 . . . . . . . . . . . 2 4 . . . Parts Field Recycled . | . . . . . . . . . . . . . . . . . . . . Retrieved Matter . | . . . . . . . . . . . . . . . . . . . . Parts Self-Destructed . | . . . . . . . . . . . . . . . . . . . . Prevented . | . . . . . . . . . . . . . . . . . . . . Kills | -11 -10 -10 -9 -9 -9 -8 -8 -8 -8 -8 -7 -7 -7 -7 -6 -6 -6 -6 -6 ------- Run | Yrd Mat Min Mat Min Exi Min Mat Gar Mat Gar Fac Gar Fac Gar Fac Ext Cet Arc Hub Combat Hostiles Destroyed 206 | . 16 2 39 3 . . 1 9 4 23 . 16 . 18 22 16 1 . 36 Melee 8 | . . . . . . . . . . . . . . . 3 5 . . . Guns 135 | . 16 2 32 2 . . 1 3 3 9 . 8 . 18 8 . . . 33 Cannons 10 | . . . . . . . . 5 . 2 . . . . 2 1 . . . AOE 40 | . . . 6 1 . . . 1 1 11 . 6 . . 6 6 . . 2 Classes Destroyed 19 | 2 5 . 6 . . . . 1 . 2 . . . . 1 1 . . 1 Worker 20 | . 2 . 4 . . . 1 . 3 . 3 . . . 4 . . . 3 Builder 10 | . . . 1 . . . . . 2 . 1 . 1 . 2 1 . . 2 Tunneler 5 | 1 . . . 2 . 1 . . . . . . . . . . . . 1 Hauler 14 | . 2 . 6 . . . . . 4 . . . . . . . . . 2 Recycler 21 | 1 2 . 5 1 . . 1 . 2 . . . 1 . 3 4 . . 1 Mechanic 2 | . . . 1 . . . . . 1 . . . . . . . . . . Operator 14 | . 2 . 3 . . . . . . . . . . . 1 . . 7 1 Watcher 15 | . 3 . 5 . . . . . 2 . . . . . 1 1 . . 3 Swarmer 34 | . . . 4 1 . . . . . 4 . 5 . 3 4 5 . . 8 Saboteur 1 | . . . . . . . . . . . . . . . 1 . . . . Grunt 96 | . 16 2 24 2 . . . 5 3 11 . 5 . 6 8 3 . . 11 Brawler 7 | . . . 1 . . . . . . . . . . 3 2 . . . 1 Duelist 4 | . . . 1 . . . . . . . . . . . 2 . . . 1 Protector 1 | . . . . . . . . . . . . . . . . . . . 1 Sentry 33 | . . . 9 . . . 1 3 1 5 . 2 . . 2 6 . . 4 Specialist 9 | . . . . . . . . . . 1 . . . 2 . . . . 6 Hunter 6 | . . . . . . . . . . 1 . . . 2 1 . . . 2 Programmer 17 | . . . . . . . . 1 . 2 . 4 . 5 3 . . . 2 Behemoth 1 | . . . . . . . . . . . . . . . . 1 . . . Cetus Guard 1 | . . . . . . . . . . . . . . . . . 1 . . Savage 1 | . . . . . . . . . . . . . . . . 1 . . . Butcher 1 | . . . . . . . . . . . . . . . . 1 . . . Guerrilla 1 | . . . . . . . . . . . . . . . . 1 . . . Best Kill Streak 10 | 2 4 1 5 1 . 1 3 4 4 10 2 8 1 3 8 5 1 2 6 Combat Bots Only 10 | . 4 1 4 1 . . 1 4 1 10 . 8 . 3 6 5 1 . 4 Max Kills in Single Turn 4 | 1 1 1 2 1 . 1 1 2 2 3 1 2 1 1 3 4 1 1 4 Gunslinging 1 | . . . 1 . . . . . . . . 1 . . . . . . 1 Exploded 3 | . . . 2 1 . . . 1 1 3 . 2 . . 3 3 . . 2 Melee 1 | . . . . . . . . . . . . . . . 1 1 . . . Uniques/NPCs Destroyed . | . . . . . . . . . . . . . . . . . . . . Combat | -11 -10 -10 -9 -9 -9 -8 -8 -8 -8 -8 -7 -7 -7 -7 -6 -6 -6 -6 -6 -------- Run | Yrd Mat Min Mat Min Exi Min Mat Gar Mat Gar Fac Gar Fac Gar Fac Ext Cet Arc Hub Hostile Shots Fired 1235 | . 59 20 114 23 . . . 34 10 51 . 84 69 66 85 231 25 2 362 Missed 371 | . 13 6 38 2 . . . 9 4 18 . 27 30 23 24 88 4 . 85 Hits 864 | . 46 14 76 21 . . . 25 6 33 . 57 39 43 61 143 21 2 277 Melee 12 | . . . 8 . . . . . . . . . . 1 . . . . 3 Projectile 852 | . 46 14 68 21 . . . 25 6 33 . 57 39 42 61 143 21 2 274 AOE 2 | . . 2 . . . . . . . . . . . . . . . . . Critical Strikes 43 | . . 1 6 . . . . 2 . 1 . 3 . 4 5 1 5 . 15 Part Disruptions 3 | . . . . . . . . . . . . . . . . . . . 3 Actively Blocked 1 | . . . . . . . . . . . . . . . . . . . 1 Damage Taken 12235 | . 596 247 1187 261 . . . 335 117 507 . 868 249 605 1113 1424 495 54 4177 Core 1700 | . 119 43 206 30 . . . 28 36 78 . 152 34 115 194 280 28 11 346 Absorbed by Shields 1505 | . . . . . . . . 57 . 16 . . . 8 . 210 82 55 1077 Reduced by Siege Mode 120 | . . . . . . . . . . . . . . . . . 11 . 109 Regen/Repaired (Parts) 692 | . 234 . 172 . . . . . 223 . . . . . 63 . . . . Core Remaining (%) 61 | 100 . 35 . . . 41 . . . 74 . . . 57 . . . . . Volleys Fired 769 | 4 80 15 116 22 . 2 4 17 30 44 . 46 1 115 62 67 8 18 118 Largest 3 | 2 2 2 2 2 . 2 3 3 3 3 . 3 2 3 3 2 3 3 3 Hottest 303 | 40 100 40 130 50 . 50 75 207 207 207 . 164 129 164 198 138 189 130 303 Shots Fired 1504 | 8 154 30 232 44 . 4 12 39 70 97 . 81 3 192 100 79 14 52 293 Gun 1228 | 8 148 30 230 44 . 4 12 14 61 66 . 63 3 138 43 9 11 52 292 Cannon 73 | . . . . . . . . 21 3 12 . 5 . . 12 17 3 . . Launcher 62 | . . . 2 . . . . . . 9 . 9 . . 16 26 . . . Special 141 | . 6 . . . . . . 4 6 10 . 4 . 54 29 27 . . 1 Kinetic 945 | 8 148 30 23 44 . 4 12 14 61 66 . 53 1 118 22 . 5 49 287 Thermal 112 | . 6 . 48 . . . . . . . . 10 2 20 21 . . . 5 Explosive 2 | . . . 2 . . . . . . . . . . . . . . . . Electromagnetic 310 | . . . 159 . . . . 21 3 21 . 14 . . 28 52 9 3 . Robot Hit Streak 22 | 2 13 18 13 11 . 15 17 8 9 13 . 16 2 22 6 22 13 13 22 Robot Miss Streak 4 | 1 4 2 4 3 . . 1 2 3 4 . 2 1 2 4 3 1 1 3 Penetration Max 2 | . . . . . . . . . . . . . . 2 . . . 1 1 Secondary Targets 22 | . 4 . 4 . . . . . . 1 . 1 . 2 . . . . 10 Max Gunslinging Chain 1 | . 1 . 1 . . . . . . 1 . 1 . 1 . . . . 1 Shots Hit Robots 1029 | 6 101 24 148 30 4 5 6 23 40 64 4 50 2 160 73 70 13 39 167 Core Hits 506 | 4 45 5 79 6 . 1 4 13 23 42 4 24 2 48 52 39 4 22 89 Critical Kills 18 | . 3 . . . . . . . . . . 1 . 2 . . . 1 11 Critical Parts Destroyed 20 | . 2 1 . . . . . . . . . 1 . 1 . . 1 2 12 Critical Strikes 54 | . 5 1 4 . . . . . . 3 . 2 . 4 2 3 2 4 24 Destroy 39 | . 5 1 . . . . . . . . . 2 . 3 . . 1 3 24 Corrupt 8 | . . . 4 . . . . . . . . . . . 1 1 1 1 . Sever 7 | . . . . . . . . . . 3 . . . 1 1 2 . . . Melee Attacks 271 | . . . 4 4 4 1 . 60 7 73 4 6 . 59 30 19 . . . Impact . | . . . . . . . . . . . . . . . . . . . . Slashing 266 | . . . 4 4 . . . 60 7 73 4 6 . 59 30 19 . . . Piercing . | . . . . . . . . . . . . . . . . . . . . Sneak Attacks 33 | . . . 1 1 4 1 . . 4 1 4 . . . 10 7 . . . Combat Hostiles 4 | . . . . . . . . . . . . . . . 2 2 . . . Follow-up Attacks . | . . . . . . . . . . . . . . . . . . . . Damage Inflicted 29813 | 48 1334 303 3031 697 . 63 112 587 900 2539 307 1646 56 4593 3380 3243 300 1261 5413 Guns 15608 | 48 1334 303 2484 484 . 63 112 133 561 696 . 809 56 1947 690 173 228 1135 4352 Cannons 1351 | . . . . . . . . 362 28 193 . 52 . . 216 428 72 . . Explosions 6734 | . . . 479 86 . . . 92 48 1263 . 693 . . 1400 1490 . 126 1057 Melee 6116 | . . . 68 127 . . . . 263 387 307 92 . 2646 1074 1152 . . . Ramming 4 | . . . . . . . . . . . . . . . . . . . 4 Kinetic 12092 | 48 1334 303 182 484 . 63 112 133 561 696 . 658 28 1632 350 . 105 1051 4352 Thermal 3009 | . . . 775 86 . . . 92 48 320 . 282 28 315 451 486 . 126 . Explosive 508 | . . . 236 . . . . . . . . . . . 272 . . . . Electromagnetic 8084 | . . . 1770 . . . . 362 28 1136 . 614 . . 1233 1605 195 84 1057 Impact . | . . . . . . . . . . . . . . . . . . . . Slashing 6116 | . . . 68 127 . . . . 263 387 307 92 . 2646 1074 1152 . . . Piercing . | . . . . . . . . . . . . . . . . . . . . Highest Corruption 12 | . . . 2 2 2 2 . . 4 5 . 3 3 3 . . 2 . 12 Average Corruption 2 | . . . 2 2 2 2 . . 3 4 . 2 3 3 . . 1 . 2 Corruption Purged 6 | . . . . . . . . . . . . . . . . . 2 . 4 Corruption Blocked . | . . . . . . . . . . . . . . . . . . . . Effects 171 | . . . 30 12 6 5 . . . 33 . 17 1 61 . . 1 . 5 Message Errors 41 | . . . 10 5 1 1 . . . 5 . 3 . 14 . . 1 . 1 Matter Fused 42 | . . . 7 6 3 2 . . . 6 . 4 . 13 . . . . 1 Heat Flow Errors 14 | . . . 2 1 1 1 . . . 3 . 1 . 5 . . . . . Energy Discharges 25 | . . . 5 . . 1 . . . 7 . 4 . 6 . . . . 2 Parts Rejected 2 | . . . . . . . . . . 1 . . . 1 . . . . . Parts Fused 3 | . . . . . . . . . . 2 . . . 1 . . . . . Data Loss (minor) 25 | . . . 3 . 1 . . . . 5 . 3 . 12 . . . . 1 Data Loss (major) 4 | . . . . . . . . . . 1 . 1 . 2 . . . . . Misfires 11 | . . . 2 . . . . . . 2 . 1 1 5 . . . . . Alerts 3 | . . . 1 . . . . . . . . . . 2 . . . . . Weapon Failures 1 | . . . . . . . . . . 1 . . . . . . . . . Overload Shots 5 | . . . . . . . . . . . . . . . . . . . 5 Overflow Damage 698 | . . . 28 85 . . . . 22 50 . 10 . 3 125 311 . . 64 Projectiles 9 | . . . . . . . . . . 4 . . . . 5 . . . . Explosions 162 | . . . 28 . . . . . . 16 . 10 . . 15 29 . . 64 Melee 527 | . . . . 85 . . . . 22 30 . . . 3 105 282 . . . Knockbacks . | . . . . . . . . . . . . . . . . . . . . Impact . | . . . . . . . . . . . . . . . . . . . . Kinetic . | . . . . . . . . . . . . . . . . . . . . Secondary . | . . . . . . . . . . . . . . . . . . . . Self-Inflicted Damage 692 | . . . 64 . . . . . . 59 . 79 . . 68 195 . 36 191 Shots 22 | . . . 2 . . . . . . 4 . 5 . . 2 6 . 1 2 Rammed 1 | . . . . . . . . . . . . . . . . . . . 1 Targets Rammed 1 | . . . . . . . . . . . . . . . . . . . 1 Kicked . | . . . . . . . . . . . . . . . . . . . . Crushed . | . . . . . . . . . . . . . . . . . . . . Highest Temperature 456 | . 32 20 354 96 128 208 40 277 123 290 . 255 51 272 361 306 208 186 456 Average Temperature 73 | . 8 5 51 24 68 80 20 84 24 85 . 68 27 61 120 120 103 49 90 Received Heat Transfer 2631 | . 306 126 429 108 . . . 150 54 102 . 228 30 174 195 267 9 4 449 Effects 7 | . . . . . . 3 . . . . . . . . 1 . . . 3 Shutdowns 1 | . . . . . . . . . . . . . . . 1 . . . . Energy Bleed 1 | . . . . . . . . . . . . . . . . . . . 1 Interference 5 | . . . . . . 3 . . . . . . . . . . . . 2 Siege Activations 12 | . . . . . . . . . . . . . . . . . 3 2 7 Total Turns 129 | . . . . . . . . . . . . . . . . . 30 8 91 Longest Duration 34 | . . . . . . . . . . . . . . . . . 16 4 34 Martial Activations . | . . . . . . . . . . . . . . . . . . . . Shielding Activations . | . . . . . . . . . . . . . . . . . . . . Robots Disrupted 1 | . . . . . . . . . . . . . . . . 1 . . . Combat Hostiles 1 | . . . . . . . . . . . . . . . . 1 . . . Robots Corrupted 14 | . . . 1 . . . . . . 1 . 2 . . 3 5 1 . 1 Combat Hostiles 13 | . . . 1 . . . . . . 1 . 2 . . 3 4 1 . 1 Parts Fried 42 | . . . 11 . . . . 2 . 4 . 2 . . 6 13 . . 4 Impact Corruptions . | . . . . . . . . . . . . . . . . . . . . Robots Melted . | . . . . . . . . . . . . . . . . . . . . Combat Hostiles . | . . . . . . . . . . . . . . . . . . . . Parts Melted 3 | . . . . . . . . . 1 . . 2 . . . . . . . Heat Transferred 4094 | . . . 1508 100 . . . 100 . 400 . 335 37 370 594 550 . 100 . Parts Sabotaged . | . . . . . . . . . . . . . . . . . . . . Parts Stolen . | . . . . . . . . . . . . . . . . . . . . Parts Stripped . | . . . . . . . . . . . . . . . . . . . . Power Chain Reactions 19 | . . . 3 . . . . 1 1 3 . 3 . . 2 5 . 1 . Alert | -11 -10 -10 -9 -9 -9 -8 -8 -8 -8 -8 -7 -7 -7 -7 -6 -6 -6 -6 -6 ------- Run | Yrd Mat Min Mat Min Exi Min Mat Gar Mat Gar Fac Gar Fac Gar Fac Ext Cet Arc Hub Maximum Alert Level 5 | . . . 3 1 . . . 1 . 3 2 3 2 5 5 4 2 1 4 Low Security (%) 40 | 100 100 100 38 83 . 100 100 46 100 21 . . . . . . . 94 40 Level 1 13 | . . . 43 16 . . . 53 . 14 22 24 . 3 . . . 5 18 Level 2 15 | . . . 10 . . . . . . 38 77 37 100 18 . 11 100 . 37 Level 3 13 | . . . 7 . . . . . . 25 . 38 . 15 . 83 . . 2 Level 4 11 | . . . . . . . . . . . . . . 20 81 4 . . 1 Level 5 7 | . . . . . . . . . . . . . . 41 18 . . . . High Security . | . . . . . . . . . . . . . . . . . . . . Max Security . | . . . . . . . . . . . . . . . . . . . . Peak Influence 3249 | 10 144 30 736 283 . 6 55 305 148 924 485 1027 539 3249 1751 1112 634 222 1444 Initial 1705 | . . . 5 283 . . . 19 148 37 485 241 539 336 1705 644 583 177 . Average 581 | 1 69 3 262 122 . . 22 157 63 523 428 641 513 1538 1474 935 535 69 362 Influence Increases 13457 | 10 579 230 1363 238 . 6 80 393 340 947 20 906 11 3113 1316 1258 309 192 2146 Destroy 0b10 Robot/C 5740 | . 320 40 780 100 . . 40 220 120 540 . 400 . 920 680 620 160 80 720 Destroy 0b10 Robot/NC 605 | 10 55 . 125 15 . 5 10 . 70 10 20 5 10 40 75 40 10 35 70 Destroy Leader 962 | . 80 10 242 20 . . 20 20 42 50 . 30 . 50 134 64 . . 200 Allied During Kill 1407 | . . . . 34 . 1 10 8 35 34 . 10 . 478 254 384 121 23 15 Successful Hack 210 | . 29 . 39 . . . . . 2 6 . 44 . 6 9 33 17 . 25 Select Force Hacks 150 | . 60 . 90 . . . . . . . . . . . . . . . . Disable Machine 795 | . 15 . 30 45 . . . . 45 . . . . 15 105 45 . 45 450 Anti-Garrison Action 2000 | . . . . . . . . 50 . 200 . 350 . 1400 . . . . . Destroy Structure 823 | . 5 . 27 24 . . . 80 11 92 . 52 1 144 29 27 1 9 321 Partial Spotted 30 | . 15 . . . . . . . . . . . . 15 . . . . . Lose Combat Pursuer 735 | . . 180 30 . . . . 15 15 15 . 15 . 45 30 45 . . 345 Influence Decreases 12016 | 10 576 218 650 879 87 6 50 118 588 80 599 224 558 344 3250 1531 907 636 705 Entered New Map 4849 | . . 3 10 445 87 . . 11 157 20 439 104 488 144 1544 671 459 267 . Time Decay 4910 | 10 566 205 630 434 . 6 50 . 371 . 140 . 70 . 666 620 278 309 555 Lost Part 270 | . 10 10 10 . . . . . . . . 30 . 20 20 60 10 . 100 Lost Ally 1187 | . . . . . . . . 107 60 60 20 90 . 180 220 180 160 60 50 Purge Threat 800 | . . . . . . . . . . . . . . . 800 . . . . Squads Dispatched 49 | . 6 . 8 1 . . . . 1 . . . . . 11 2 . . 20 Investigation 13 | . 4 . 5 . . . . . . . . . . . 1 2 . . 1 Extermination 5 | . . . . . . . . . . . . . . . 3 . . . 2 Reinforcement 15 | . 2 . 3 . . . . . 1 . . . . . 1 . . . 8 Assault 6 | . . . . 1 . . . . . . . . . . 5 . . . . Garrison 10 | . . . . . . . . . . . . . . . 1 . . . 9 Intercept . | . . . . . . . . . . . . . . . . . . . . Searches Triggered . | . . . . . . . . . . . . . . . . . . . . Construction Impeded . | . . . . . . . . . . . . . . . . . . . . Haulers Reinforced 1 | . . . . . . . . . . . . . . . . . . . 1 Active Scanning Responses . | . . . . . . . . . . . . . . . . . . . . Cargo Convoy Interrupts . | . . . . . . . . . . . . . . . . . . . . Stealth | -11 -10 -10 -9 -9 -9 -8 -8 -8 -8 -8 -7 -7 -7 -7 -6 -6 -6 -6 -6 --------- Run | Yrd Mat Min Mat Min Exi Min Mat Gar Mat Gar Fac Gar Fac Gar Fac Ext Cet Arc Hub Distress Signals 11 | . 1 . 1 . . . . . 1 . . . . . 2 . 2 1 3 Communications Jammed 158 | . . . . . . . . . . . . . . . 17 82 15 . 44 Distress Signals 157 | . . . . . . . . . . . . . . . 17 82 15 . 43 Times Spotted 398 | . 24 14 48 4 . . 1 13 16 26 1 24 2 45 54 36 11 11 68 Peak Tracking Total 15 | . 5 2 4 3 . . 1 4 2 6 1 7 2 4 6 6 5 2 15 Tactical Retreats 38 | . . 12 2 . . . . 1 2 1 . 1 . 3 5 2 . . 9 Traps | -11 -10 -10 -9 -9 -9 -8 -8 -8 -8 -8 -7 -7 -7 -7 -6 -6 -6 -6 -6 ------- Run | Yrd Mat Min Mat Min Exi Min Mat Gar Mat Gar Fac Gar Fac Gar Fac Ext Cet Arc Hub Traps Triggered 46 | . 3 . 1 . . . . 6 3 9 . 8 . 8 2 5 . . 1 Indirectly 3 | . . . . . . . . . . 1 . . . . . 1 . . 1 Trap Hack Attempts . | . . . . . . . . . . . . . . . . . . . . Triggered . | . . . . . . . . . . . . . . . . . . . . Disarmed . | . . . . . . . . . . . . . . . . . . . . Reprogrammed . | . . . . . . . . . . . . . . . . . . . . Reused . | . . . . . . . . . . . . . . . . . . . . Traps Extracted . | . . . . . . . . . . . . . . . . . . . . Installed . | . . . . . . . . . . . . . . . . . . . . Triggered . | . . . . . . . . . . . . . . . . . . . . Machines | -11 -10 -10 -9 -9 -9 -8 -8 -8 -8 -8 -7 -7 -7 -7 -6 -6 -6 -6 -6 ---------- Run | Yrd Mat Min Mat Min Exi Min Mat Gar Mat Gar Fac Gar Fac Gar Fac Ext Cet Arc Hub Machines Disabled 76 | . 1 . 2 3 . . . 1 3 2 . 5 . 11 7 8 . 3 30 Max in Single Turn 11 | . 1 . 1 2 . . . 1 1 1 . 2 . 2 2 2 . 1 11 Garrison Access 3 | . . . . . . . . . . . . . . . 2 . . . 1 Garrison Relay 12 | . . . . . . . . 1 . 2 . 3 . 6 . . . . . Phase Generator 2 | . . . . . . . . . . . . 1 . 1 . . . . . Network Hub 2 | . . . . . . . . . . . . . . . . . . . 2 Machines Repaired . | . . . . . . . . . . . . . . . . . . . . Machines Dismantled . | . . . . . . . . . . . . . . . . . . . . Machines Sabotaged . | . . . . . . . . . . . . . . . . . . . . Overloaded Fab Kills . | . . . . . . . . . . . . . . . . . . . . Hacking | -11 -10 -10 -9 -9 -9 -8 -8 -8 -8 -8 -7 -7 -7 -7 -6 -6 -6 -6 -6 --------- Run | Yrd Mat Min Mat Min Exi Min Mat Gar Mat Gar Fac Gar Fac Gar Fac Ext Cet Arc Hub Machines Accessed 70 | . 9 . 15 . 2 . 1 3 4 2 1 5 1 1 9 9 3 . 5 Terminals 47 | . 6 . 9 . . . . 3 2 2 . 5 . 1 3 9 3 . 4 Fabricators 1 | . . . . . . . . . . . . . . . 1 . . . . Repair Stations 5 | . 1 . 2 . . . . . 1 . . . . . 1 . . . . Recycling Units 4 | . 2 . 2 . . . . . . . . . . . . . . . . Scanalyzers 4 | . . . 2 . . . . . . . . . . . 2 . . . . Garrison Access 7 | . . . . . . . 1 . 1 . 1 . 1 . 2 . . . 1 Total Hacks 183 | . 27 . 41 . 5 . 1 8 11 4 1 10 1 1 29 23 5 . 16 Successful 105 | . 17 . 25 . 5 . 1 2 10 1 1 4 1 1 18 11 2 . 6 Failed 77 | . 9 . 16 . . . . 6 1 3 . 6 . . 11 12 3 . 10 Catastrophic 9 | . 1 . . . . . . 1 . . . . . . 1 2 1 . 3 Database Lockouts 1 | . 1 . . . . . . . . . . . . . . . . . . Manual 66 | . 18 . 22 . 1 . . . 2 . . . . . 8 9 . . 6 Terminals 124 | . 19 . 25 . . . . 8 4 4 . 10 . 1 11 23 5 . 14 Fabricators 2 | . . . . . . . . . . . . . . . 2 . . . . Repair Stations 16 | . 4 . 4 . . . . . 6 . . . . . 2 . . . . Recycling Units 6 | . 4 . 2 . . . . . . . . . . . . . . . . Scanalyzers 21 | . . . 10 . . . . . . . . . . . 11 . . . . Garrison Access 9 | . . . . . . . 1 . 1 . 1 . 1 . 3 . . . 2 Terminal Hacks 48 | . 4 . 7 . 5 . . 2 3 1 . 4 . 1 5 10 2 . 4 Record 5 | . . . . . 4 . . . . . . . . . . . 1 . . Robot Analysis 8 | . 1 . 3 . . . . . 2 . . . . . . 2 . . . Prototype ID Bank 3 | . 1 . . . . . . . . . . . . . 1 1 . . . Open Door 8 | . . . . . . . . 1 . 1 . 1 . 1 . 3 1 . . Branch Access Points 1 | . . . . . . . . . . . . . . . 1 . . . . Emergency Access Points 1 | . . . . . . . . . . . . 1 . . . . . . . Terminal Index 1 | . . . . . . . . . . . . . . . . . . . 1 Unreport Threat 2 | . . . . . . . . . . . . . . . 2 . . . . Locate Traps 9 | . 2 . 3 . . . . . . . . . . . 1 2 . . 1 Recall Investigation 1 | . . . . . . . . . . . . . . . . 1 . . . Zone Layout 5 | . . . 1 . . . . . 1 . . . . . . 1 . . 2 Garrison Registry 1 | . . . . . . . . 1 . . . . . . . . . . . Patrol Navigation 1 | . . . . . . . . . . . . 1 . . . . . . . Security Stations 1 | . . . . . . . . . . . . 1 . . . . . . . Proto ID Catalog 1 | . . . . . 1 . . . . . . . . . . . . . . Fabricator Hacks . | . . . . . . . . . . . . . . . . . . . . Repair Station Hacks 16 | . 4 . 4 . . . . . 6 . . . . . 2 . . . . Scan Component 8 | . 2 . 2 . . . . . 3 . . . . . 1 . . . . Repair 8 | . 2 . 2 . . . . . 3 . . . . . 1 . . . . Recycling Unit Hacks . | . . . . . . . . . . . . . . . . . . . . Scanalyzer 15 | . . . 6 . . . . . . . . . . . 9 . . . . Insert Component 7 | . . . 3 . . . . . . . . . . . 4 . . . . Analyze 8 | . . . 3 . . . . . . . . . . . 5 . . . . Garrison Access Hacks 8 | . . . . . . . 1 . 1 . 1 . 1 . 2 . . . 2 Unlock Access 4 | . . . . . . . 1 . 1 . 1 . 1 . . . . . . Seal Access 3 | . . . . . . . . . . . . . . . 2 . . . 1 Coupler Status 1 | . . . . . . . . . . . . . . . . . . . 1 Unauthorized Hacks 17 | . 8 . 8 . . . . . . . . . . . . 1 . . . Terminals 12 | . 6 . 5 . . . . . . . . . . . . 1 . . . Botnet 1 | . . . . . . . . . . . . . . . . 1 . . . Operators 1 | . 1 . . . . . . . . . . . . . . . . . . Skim 10 | . 5 . 5 . . . . . . . . . . . . . . . . Fabricators . | . . . . . . . . . . . . . . . . . . . . Repair Stations . | . . . . . . . . . . . . . . . . . . . . Recycling Units 4 | . 2 . 2 . . . . . . . . . . . . . . . . Tunnel 4 | . 2 . 2 . . . . . . . . . . . . . . . . Scanalyzers 1 | . . . 1 . . . . . . . . . . . . . . . . Extract 1 | . . . 1 . . . . . . . . . . . . . . . . Garrison Access . | . . . . . . . . . . . . . . . . . . . . Data Cores Recovered 1 | . . . . . . . . . . . . . . . . 1 . . . Used . | . . . . . . . . . . . . . . . . . . . . Hacking Detections 57 | . 7 . 13 . . . 1 2 4 2 . 4 1 . 8 8 3 . 4 Full Trace Events 5 | . . . . . . . . . . . . 1 . . 1 2 . . 1 Feedback Events . | . . . . . . . . . . . . . . . . . . . . Feedback Blocked . | . . . . . . . . . . . . . . . . . . . . Robot Schematics Acquired . | . . . . . . . . . . . . . . . . . . . . Robots Built . | . . . . . . . . . . . . . . . . . . . . Authchips . | . . . . . . . . . . . . . . . . . . . . Time . | . . . . . . . . . . . . . . . . . . . . Total Robot Build Rating . | . . . . . . . . . . . . . . . . . . . . Part Schematics Acquired 14 | . . . 10 . . . . . . . . . . . 4 . . . . Parts Built . | . . . . . . . . . . . . . . . . . . . . Authchips . | . . . . . . . . . . . . . . . . . . . . Time . | . . . . . . . . . . . . . . . . . . . . Total Part Build Rating . | . . . . . . . . . . . . . . . . . . . . Parts Repaired 8 | . 2 . 2 . . . . . 3 . . . . . 1 . . . . Time 269 | . 52 . 77 . . . . . 96 . . . . . 44 . . . . Parts Recycled . | . . . . . . . . . . . . . . . . . . . . Recycled Matter . | . . . . . . . . . . . . . . . . . . . . Retrieved Matter . | . . . . . . . . . . . . . . . . . . . . Retrieved Components . | . . . . . . . . . . . . . . . . . . . . Parts Scanalyzed 7 | . . . 3 . . . . . . . . . . . 4 . . . . Part Schematics Acquired 7 | . . . 3 . . . . . . . . . . . 4 . . . . Parts Damaged 2 | . . . . . . . . . . . . . . . 2 . . . . Bothacking | -11 -10 -10 -9 -9 -9 -8 -8 -8 -8 -8 -7 -7 -7 -7 -6 -6 -6 -6 -6 ------------ Run | Yrd Mat Min Mat Min Exi Min Mat Gar Mat Gar Fac Gar Fac Gar Fac Ext Cet Arc Hub Used RIF Installer 5 | . . . . . . . . 2 . 1 . 1 . 1 . . . . . Code Merge 1 | . . . . . . . . . . . . . . 1 . . . . . Command Fork 1 | . . . . . . . . . . 1 . . . . . . . . . Signal Jammer 1 | . . . . . . . . 1 . . . . . . . . . . . Zone Cloak 1 | . . . . . . . . . . . . 1 . . . . . . . Robots Hacked 55 | . . . . . 4 1 . 3 4 4 . 4 . 13 16 5 . . 1 Non-combat 11 | . . . . . 3 1 . . . 1 . . . . 6 . . . . Combat 44 | . . . . . 1 . . 3 4 3 . 4 . 13 10 5 . . 1 Robot Hacks Applied 62 | . . . . . 4 1 . 3 4 4 . 4 . 16 20 5 . . 1 parse_system 11 | . . . . . 4 1 . . . . . . . 3 1 1 . . 1 find_chute 2 | . . . . . . . . . . . . . . . 2 . . . . ignore_repairs 1 | . . . . . . . . . . . . . . . 1 . . . . purge_threat 5 | . . . . . . . . . . . . . . . 5 . . . . scatter_targeting 2 | . . . . . . . . . . . . . . 2 . . . . . disrupt_area 2 | . . . . . . . . . . . . . . 2 . . . . . disable_weapons 11 | . . . . . . . . . 1 . . 2 . 2 5 1 . . . reboot_system 1 | . . . . . . . . . . . . . . . . 1 . . . overwrite_iff 13 | . . . . . . . . . 1 1 . . . 4 5 2 . . . streamctrl_high 2 | . . . . . . . . 2 . . . . . . . . . . . formatsys_low 2 | . . . . . . . . . . 1 . . . . 1 . . . . formatsys_high 10 | . . . . . . . . 1 2 2 . 2 . 3 . . . . . Relay Couplers Released 54 | . . . . . . . . 7 . 8 . 13 . 25 . . . . 1 Machine Destruction 50 | . . . . . . . . 3 . 8 . 13 . 25 . . . . 1 Programmers 4 | . . . . . . . . 4 . . . . . . . . . . . Attached 16 | . . . . . . . . 2 2 3 . 4 . 4 1 . . . . Merged Code Value 158 | . . . . . . . . . . . . . . 158 . . . . . Fabnet Peak Effective % . | . . . . . . . . . . . . . . . . . . . . Robots Rewired 35 | . . . . . . . . . . 2 . . . 15 . 18 . . . Allies Hacked 4 | . . . . . . . . . . . . 1 . 1 2 . . . . Hacks Repelled . | . . . . . . . . . . . . . . . . . . . . Allies | -11 -10 -10 -9 -9 -9 -8 -8 -8 -8 -8 -7 -7 -7 -7 -6 -6 -6 -6 -6 -------- Run | Yrd Mat Min Mat Min Exi Min Mat Gar Mat Gar Fac Gar Fac Gar Fac Ext Cet Arc Hub Total Allies 83 | . . . . 4 . . . 5 3 8 . 3 . 25 9 26 . . . Largest Group 15 | . . . . 4 4 4 4 3 4 4 3 3 . 11 11 15 13 5 2 Highest-Rated Group 475 | . . . . 71 71 71 71 70 75 112 53 57 . 263 276 475 331 134 63 Highest-Rated Ally 159 | . . . . 31 31 31 31 39 29 34 23 32 . 40 47 159 32 32 32 Total Orders 9 | . . . . . . . . . . 3 . . . 2 2 . . . 2 STAY 3 | . . . . . . . . . . 2 . . . 1 . . . . . FOLLOW 2 | . . . . . . . . . . 1 . . . 1 . . . . . EXPLORE 2 | . . . . . . . . . . . . . . . 1 . . . 1 RETURN 2 | . . . . . . . . . . . . . . . 1 . . . 1 Ally Attacks 559 | . . . . 14 . . 2 32 32 14 4 31 . 109 109 131 52 19 10 Total Damage 11569 | . . . . 61 . . 36 328 536 533 59 686 . 2517 2120 2779 1255 387 272 Kills 93 | . . . . 2 . . 1 2 3 4 . 4 . 29 17 17 9 4 1 Allies Corrupted 3 | . . . . . . . . . . . . 1 . . 2 . . . . Allies Melted 2 | . . . . . . . . . . 1 . . . . 1 . . . . Intel | -11 -10 -10 -9 -9 -9 -8 -8 -8 -8 -8 -7 -7 -7 -7 -6 -6 -6 -6 -6 ------- Run | Yrd Mat Min Mat Min Exi Min Mat Gar Mat Gar Fac Gar Fac Gar Fac Ext Cet Arc Hub Active Infowar (turns) 22672 | 22 2139 481 3396 1070 442 464 176 821 662 . 162 1377 156 3204 2550 2084 609 1116 1741 Optics 6284 | . . . 3396 1070 442 464 176 736 . . . . . . . . . . . Sensors 591 | . . . . . 3 . . . . . . . . . 588 . . . . Traps 1 | . . . . . . . . . 1 . . . . . . . . . . Seismic 3405 | 22 2139 481 122 481 160 . . . . . . . . . . . . . . T.N.C. 12999 | . . . . . . . . . . . 162 1377 156 3204 2550 2084 609 1116 1741 ECM 961 | . . . . . . . . 85 661 . . . . . 169 . . . 46 Robot Analysis Total 6 | . 1 . 3 . . . . . 1 . . . . . . 1 . . . Derelict Logs Recovered 3 | . . 1 . 2 . . . . . . . . . . . . . . . Drone Launches 2 | . . . . . . . . . . . . . . . 1 . . . 1 Drone Recoveries 1 | . . . . . . . . . . . . . . . 1 . . . . Exploration | -11 -10 -10 -9 -9 -9 -8 -8 -8 -8 -8 -7 -7 -7 -7 -6 -6 -6 -6 -6 ------------- Run | Yrd Mat Min Mat Min Exi Min Mat Gar Mat Gar Fac Gar Fac Gar Fac Ext Cet Arc Hub Turns Passed 26209 | 89 2141 1731 3424 1070 442 484 176 1117 872 1543 283 1377 156 3204 2550 2084 609 1116 1741 Spaces Moved 10780 | 43 832 694 1160 657 286 310 93 521 458 894 222 571 64 1124 959 992 202 190 508 Core 27 | 5 . . . . . . . . . . . . . . . . . 22 . Treads 5461 | 38 645 674 690 . . . . 102 3 . . 306 64 1124 741 311 202 168 393 Legs 11 | . . . . . . . . . . . . . . . . . . . 11 Wheels 5281 | . 187 20 470 657 286 310 93 419 455 894 222 265 . . 218 681 . . 104 Hover . | . . . . . . . . . . . . . . . . . . . . Flight . | . . . . . . . . . . . . . . . . . . . . Fastest Speed 50 | 50 95 105 115 150 135 150 150 116 116 120 120 120 240 165 120 120 245 245 125 Average Speed 194 | 150 205 236 234 150 144 150 150 144 121 120 120 190 240 237 211 165 249 482 229 Slowest Speed 2300 | 160 240 240 320 150 150 150 150 240 240 150 120 240 240 245 245 245 490 2300 245 Overloaded Moves 11 | . . . . . . . . . . . . . . . . . . . 11 Propulsion Burnouts . | . . . . . . . . . . . . . . . . . . . . Robots Hopped 2 | . . . . . . . . . . . . . . . 2 . . . . Potential Cave-ins . | . . . . . . . . . . . . . . . . . . . . Cave-ins Triggered . | . . . . . . . . . . . . . . . . . . . . Exploration Rate (%) 64 | 4 97 100 97 97 72 65 9 65 41 83 7 99 4 97 27 98 78 80 63 Regions Visited 19 Branch Regions 8 Pre-discovered Areas 10 | . 4 . 5 . 1 . . . . . . . . . . . . . . Known Exits Taken 8 | . 1 1 . . . 1 1 . 1 . 1 . 1 . 1 . . . . Unknown Exits Taken 7 | 1 . . 1 1 1 . . . . . . . . . . 1 1 1 . Scrap Searched 5 | . . 1 . 3 . 1 . . . . . . . . . . . . . Spaces Dug 380 | . 5 . 3 1 . . . 25 2 37 . 5 . 91 7 . . . 204 Terrain Destroyed 849 | . 5 . 26 26 . . . 29 7 39 . 78 1 170 25 20 1 13 409 Melee 80 | . . . 3 1 . . . 25 2 35 . 1 . 6 7 . . . . Projectile 116 | . 5 . . . . . . . . . . 1 1 6 13 . 1 11 78 AOE 651 | . . . 23 25 . . . 4 5 4 . 76 . 158 5 20 . 2 329 Terrain Rammed . | . . . . . . . . . . . . . . . . . . . . Walls Destroyed . | . . . . . . . . . . . . . . . . . . . . Machines Disabled . | . . . . . . . . . . . . . . . . . . . . Actions | -11 -10 -10 -9 -9 -9 -8 -8 -8 -8 -8 -7 -7 -7 -7 -6 -6 -6 -6 -6 --------- Run | Yrd Mat Min Mat Min Exi Min Mat Gar Mat Gar Fac Gar Fac Gar Fac Ext Cet Arc Hub Total 14296 | 57 1094 756 1639 698 313 324 125 746 719 1156 232 788 65 1414 1331 1330 297 353 859 Wait 1418 | 1 124 31 189 10 8 10 9 64 159 37 . 80 . 38 188 123 51 130 166 Move 10758 | 42 831 693 1159 656 285 309 92 519 458 893 221 570 63 1123 955 991 201 189 508 Hop 1 | . . . . . . . . . . . . . . . 1 . . . . Pick Up 182 | 3 21 7 44 2 5 . 8 8 8 5 2 12 . 13 12 10 5 7 10 Fast Attach 102 | 7 2 1 16 . . . . 1 13 4 2 6 . 10 14 10 10 1 5 Attach 71 | . 1 1 10 . 2 . 2 3 2 2 1 8 . 4 4 12 2 . 17 Detach 17 | . . . 2 . 1 . . . . . . 1 . 1 2 5 2 . 3 Swap 279 | . 26 5 42 3 3 2 4 29 23 36 . 14 1 14 40 16 4 . 17 Drop 231 | . 9 3 57 1 5 . 6 11 18 7 2 15 . 24 23 14 14 8 14 Fire 769 | 4 80 15 116 22 . 2 4 17 30 44 . 46 1 115 62 67 8 18 118 Melee 271 | . . . 4 4 4 1 . 60 7 73 4 6 . 59 30 19 . . . Ram . | . . . . . . . . . . . . . . . . . . . . Kick . | . . . . . . . . . . . . . . . . . . . . Crush 1 | . . . . . . . . . . . . . . . . . . . 1 Escape Stasis 172 | . . . . . . . . 34 . 55 . 30 . 12 . 41 . . . Rewire 24 | . . . . . . . . . 1 . . . . 1 . 22 . . . Trap . | . . . . . . . . . . . . . . . . . . . . Miscellaneous . | . . . . . . . . . . . . . . . . . . . . Route ------- -11/Scrapyard -10/Materials (discovered 4 exits: *Mat x3 / *Min) -10/Mines (discovered 3 exits: *Mat x2 / *Sub) -9/Materials (discovered 4 exits: *Mat x3 / [*Min]) -9/Mines (discovered 4 exits: *Mat x2 / *Exi / [*Zio]) -9/Exiles (discovered 2 exits: [*Min x2]) -8/Mines (discovered 2 exits: *Mat x2) -8/Materials -8/Garrison (discovered 3 exits: *Mat x3) -8/Materials (discovered 2 exits: *Fac / Gar) -8/Garrison (discovered 3 exits: *Fac x3) -7/Factory (discovered 4 exits: *Fac / Sto / Low / Gar) -7/Garrison (discovered 3 exits: *Fac x3) -7/Factory -7/Garrison (discovered 3 exits: *Fac x3) -6/Factory (discovered 4 exits: Low x2 / *Ext x2) -6/Extension (discovered 2 exits: [*Fac] / *Cet) -6/Cetus (discovered 2 exits: [*Fac] / [*Arc]) -6/Archives (discovered 3 exits: [*Fac] / *Hub x2) -6/Hub_04(d) (discovered 2 exits: [*Fac x2]) History --------- Turn | Location | Event 8 | -11/Scrapyard | Discovered new exit (range 14) 90 | -11/Scrapyard | Entered Materials 201 | -10/Materials | Discovered new exit (range 14) 282 | -10/Materials | Discovered new exit (range 5) 357 | -10/Materials | Build established: Mutant 880 | -10/Materials | Discovered new exit (range 10) 1339 | -10/Materials | Central database locked down 1426 | -10/Materials | Learned Storage machine intel 1454 | -10/Materials | Discovered new exit (range 7) 1501 | -10/Materials | Learned location of 2 exits from Mines 1566 | -10/Materials | Learned 2 Storage zone layouts 1622 | -10/Materials | Learned location of 1 exit from Recycling 1668 | -10/Materials | Identified exit to Materials 1668 | -10/Materials | Identified exit to Mines 1706 | -10/Materials | Learned location of 1 exit from Recycling 1732 | -10/Materials | Learned location of Subcaves (-10) 1814 | -10/Materials | Learned location of 1 exit from Storage 1868 | -10/Materials | Learned location of Mines (-9) 1933 | -10/Materials | Repaired Lgt. Treads 1961 | -10/Materials | Repaired Lgt. Treads 2231 | -10/Materials | Entered Mines 2232 | -10/Mines | Assembled infested the area 2232 | -10/Mines | Identified exit to Subcaves 2237 | -10/Mines | Assisted by a Guerilla fighting off Assembled 2464 | -10/Mines | Discovered exit to Materials (range 6) 2646 | -10/Mines | Learned Materials emergency access door positions 2696 | -10/Mines | Core integrity fell below 50% 3288 | -10/Mines | Received a Rocket Launcher from a helpful Derelict 3962 | -10/Mines | Entered Materials 3962 | -9/Materials | Evolved 2 slots: Utility x2 4358 | -9/Materials | Discovered new exit (range 18) 4583 | -9/Materials | Repaired Lgt. Treads 4758 | -9/Materials | Discovered new exit (range 9) 4998 | -9/Materials | Learned location of Mines (-8) 5056 | -9/Materials | Learned 2 Storage zone layouts 5106 | -9/Materials | Learned 2 Storage zone layouts 5147 | -9/Materials | Identified exit to Materials 5176 | -9/Materials | Learned location of Zion (-7) 5232 | -9/Materials | Build established: Scavenger-Mutant 5795 | -9/Materials | Build established: Mutant 7064 | -9/Materials | Core integrity fell below 50% 7153 | -9/Materials | Repaired Cld. Ion Engine 7386 | -9/Materials | Entered Mines 7394 | -9/Mines | Learned Materials trap positions 7400 | -9/Mines | Met a Derelict bent on vengeance 7487 | -9/Mines | Assisted by bots powering up and referring to "LRC-V3" 7618 | -9/Mines | Met a Derelict testing a Signal Generator 7689 | -9/Mines | Discovered exit to Materials (range 7) 7733 | -9/Mines | Deemed a non-threat by the Exiles lab entrance 7864 | -9/Mines | A Derelict revealed a hidden shortcut to a safe place 8289 | -9/Mines | Found a damaged Exp. Sensor Array with a note attached 8297 | -9/Mines | Found Prototype Device 8439 | -9/Mines | Discovered new exit (range 5) 8456 | -9/Mines | Entered Exiles 8456 | -9/Exiles | Accompanied by 4 allies 8479 | -9/Exiles | Discovered new exit (range 17) 8496 | -9/Exiles | Met 8R-AWN 8517 | -9/Exiles | Met EX-HEX 8558 | -9/Exiles | Met EX-BIN 8576 | -9/Exiles | Aligned with FarCom system 8577 | -9/Exiles | Given EX-Vault access code 8609 | -9/Exiles | Opened EX-Vault 8616 | -9/Exiles | Identified Exp. Sensor Array 8624 | -9/Exiles | Found Modified TNC 8628 | -9/Exiles | Found Supersonic Drone Bay 8632 | -9/Exiles | Found Potential Leg 8635 | -9/Exiles | Found Potential Leg 8665 | -9/Exiles | Warned to stay clear of 0b10 Research branches 8699 | -9/Exiles | Met EX-DEC 8872 | -9/Exiles | Discovered new exit (range 15) 8898 | -9/Exiles | Stole three prototypes: Potential Leg, Modified TNC, Supersonic Drone Bay 8898 | -9/Exiles | Entered Mines 8898 | -8/Mines | Accompanied by 4 allies 8991 | -8/Mines | Discovered exit to Materials (range 17) 9225 | -8/Mines | Discovered exit to Materials (range 6) 9382 | -8/Mines | Entered Materials 9382 | -8/Materials | Accompanied by 4 allies 9382 | -8/Materials | Evolved 2 slots: Propulsion x1, Weapon x1 9383 | -8/Materials | Loaded intel: 17 trap records 9549 | -8/Materials | Identified exit to Garrison 9558 | -8/Materials | Entered Garrison 9558 | -8/Garrison | Accompanied by 3 allies 9626 | -8/Garrison | Triggered checkpoint 9698 | -8/Garrison | Lost 3 allies 9995 | -8/Garrison | Rescued a captive Derelict 9996 | -8/Garrison | Rescued a captive Derelict 10026 | -8/Garrison | Triggered checkpoint 10042 | -8/Garrison | Triggered checkpoint 10188 | -8/Garrison | Installed Relay Interface Framework 10240 | -8/Garrison | Discovered new exit (range 19) 10394 | -8/Garrison | Discovered new exit (range 16) 10394 | -8/Garrison | Discovered new exit (range 30) 10394 | -8/Garrison | Discovered new exit (range 59) 10500 | -8/Garrison | Triggered checkpoint 10584 | -8/Garrison | Garrison Relay disabled 10609 | -8/Garrison | Expanded RIF knowledge: Signal Jamming 10675 | -8/Garrison | Entered Materials 10675 | -8/Materials | Accompanied by 1 ally 10967 | -8/Materials | Repaired Arm. Wheel 11001 | -8/Materials | Repaired Arm. Wheel 11034 | -8/Materials | Repaired Arm. Wheel 11086 | -8/Materials | Build established: Skirmisher 11403 | -8/Materials | Discovered new exit (range 7) 11547 | -8/Materials | Identified exit to Garrison 11547 | -8/Materials | Entered Garrison 11551 | -8/Garrison | Triggered checkpoint 11947 | -8/Garrison | Triggered checkpoint 12015 | -8/Garrison | Rescued a captive Derelict 12086 | -8/Garrison | Triggered checkpoint 12107 | -8/Garrison | Triggered checkpoint 12118 | -8/Garrison | P-60 Hacker assimilated allied Shotgunner 3a 12160 | -8/Garrison | Destroyed 10 combat bots 12246 | -8/Garrison | Discovered new exit (range 7) 12357 | -8/Garrison | Triggered checkpoint 12463 | -8/Garrison | Discovered new exit (range 9) 12510 | -8/Garrison | Expanded RIF knowledge: Command Fork 12666 | -8/Garrison | Discovered new exit (range 12) 12693 | -8/Garrison | Triggered checkpoint 12727 | -8/Garrison | Garrison Relay disabled 12772 | -8/Garrison | Build established: Mutant 12836 | -8/Garrison | Triggered checkpoint 12991 | -8/Garrison | Triggered checkpoint 13019 | -8/Garrison | Garrison Relay disabled 13090 | -8/Garrison | Entered Factory 13090 | -7/Factory | Accompanied by 3 allies 13090 | -7/Factory | Evolved 2 slots: Utility x2 13091 | -7/Factory | Identified exit to Storage 13091 | -7/Factory | Identified exit to Lower Caves 13092 | -7/Factory | FarCom data flow suspended 13336 | -7/Factory | Discovered new exit (range 15) 13371 | -7/Factory | Identified exit to Garrison 13373 | -7/Factory | Entered Garrison 13373 | -7/Garrison | Accompanied by 2 allies 13446 | -7/Garrison | Phase Generator disabled 13535 | -7/Garrison | Triggered checkpoint 13628 | -7/Garrison | Lost 3 allies 13684 | -7/Garrison | Learned Factory security intel 13707 | -7/Garrison | Triggered checkpoint 13708 | -7/Garrison | Triggered checkpoint 13710 | -7/Garrison | Triggered checkpoint 13746 | -7/Garrison | Destroyed 8 combat bots 13823 | -7/Garrison | Triggered checkpoint 13858 | -7/Garrison | Garrison Relay disabled 13897 | -7/Garrison | Discovered new exit (range 15) 14166 | -7/Garrison | Discovered new exit (range 9) 14213 | -7/Garrison | Triggered checkpoint 14245 | -7/Garrison | Garrison Relay disabled 14276 | -7/Garrison | Build established: Bothacker-Gunner 14304 | -7/Garrison | Rescued a captive Derelict 14399 | -7/Garrison | Triggered checkpoint 14491 | -7/Garrison | Triggered checkpoint 14524 | -7/Garrison | Expanded RIF knowledge: Zone Cloak 14629 | -7/Garrison | Garrison Relay disabled 14695 | -7/Garrison | Discovered new exit (range 14) 14750 | -7/Garrison | Entered Factory 14887 | -7/Factory | Identified exit to Garrison 14906 | -7/Factory | Entered Garrison 14911 | -7/Garrison | Triggered checkpoint 14946 | -7/Garrison | Triggered checkpoint 15006 | -7/Garrison | Garrison Relay disabled 15633 | -7/Garrison | Lost 3 allies 15674 | -7/Garrison | Triggered checkpoint 15771 | -7/Garrison | Discovered new exit (range 10) 15820 | -7/Garrison | Triggered checkpoint 15980 | -7/Garrison | Triggered checkpoint 16102 | -7/Garrison | Phase Generator disabled 16369 | -7/Garrison | Expanded RIF knowledge: Code Merge 16506 | -7/Garrison | Garrison Relay disabled 16522 | -7/Garrison | Triggered checkpoint 16556 | -7/Garrison | Triggered checkpoint 16678 | -7/Garrison | Build established: Botlord-Gunner 16710 | -7/Garrison | Rescued a captive Derelict 16712 | -7/Garrison | Rescued a captive Derelict 16747 | -7/Garrison | Discovered new exit (range 12) 16760 | -7/Garrison | Triggered checkpoint 16802 | -7/Garrison | Triggered checkpoint 16822 | -7/Garrison | Garrison Relay disabled 17186 | -7/Garrison | Build established: Bothacker-Mutant 17212 | -7/Garrison | Triggered checkpoint 17343 | -7/Garrison | Garrison Relay disabled 17605 | -7/Garrison | Build established: Bothacker-Tank 17700 | -7/Garrison | Triggered checkpoint 17710 | -7/Garrison | Triggered checkpoint 17861 | -7/Garrison | Discovered new exit (range 10) 17923 | -7/Garrison | Build established: Botlord-Tank 17998 | -7/Garrison | Triggered checkpoint 18029 | -7/Garrison | Garrison Relay disabled 18110 | -7/Garrison | Entered Factory 18110 | -6/Factory | Accompanied by 9 allies 18110 | -6/Factory | Evolved 2 slots: Utility x2 19160 | -6/Factory | First assault squad dispatched 19262 | -6/Factory | Spotted B-75 Beast 19371 | -6/Factory | Lost 4 allies 19586 | -6/Factory | Garrison activated, responded to threat 19625 | -6/Factory | Identified exit to Lower Caves 19625 | -6/Factory | Identified exit to Extension 20293 | -6/Factory | Repaired Remote Datajack 20660 | -6/Factory | Entered Extension 20675 | -6/Extension | Disrupted transfer network 20830 | -6/Extension | Rescued a captive Derelict 20831 | -6/Extension | Rescued a captive Derelict 20860 | -6/Extension | Build established: Bothacker-Mutant 21085 | -6/Extension | Rescued A7 21147 | -6/Extension | Rescued a captive Derelict 21449 | -6/Extension | Spotted B-75 Beast 21485 | -6/Extension | Destroyed B-75 Beast 21510 | -6/Extension | Lost 5 allies 21703 | -6/Extension | Rescued a captive Derelict 21705 | -6/Extension | Rescued a captive Derelict 22065 | -6/Extension | Core integrity fell below 50% 22089 | -6/Extension | Extracted ID and sensor layout for unrecognized location from A7's data core 22238 | -6/Extension | Discovered new exit (range 10) 22241 | -6/Extension | Discovered new exit (range 6) 22744 | -6/Extension | Entered Cetus 22744 | -6/Cetus | Accompanied by 13 allies 22775 | -6/Cetus | Spotted Cetus Guard 22775 | -6/Cetus | Spotted Cetus Guard 22778 | -6/Cetus | Spotted Cetus Guard 22781 | -6/Cetus | Destroyed Cetus Guard 22781 | -6/Cetus | Spotted Cetus Guard 22800 | -6/Cetus | Allies destroyed Cetus Guard 22803 | -6/Cetus | Allies destroyed Cetus Guard 22806 | -6/Cetus | Allies destroyed Cetus Guard 22828 | -6/Cetus | Lost 3 allies 23097 | -6/Cetus | Build established: Bothacker-Tank 23134 | -6/Cetus | Discovered new exit (range 15) 23177 | -6/Cetus | Spotted Cetus Guard 23177 | -6/Cetus | Spotted Cetus Guard 23183 | -6/Cetus | Spotted Cetus Guard 23184 | -6/Cetus | Spotted Cetus Guard 23200 | -6/Cetus | Allies destroyed Cetus Guard 23203 | -6/Cetus | Allies destroyed Cetus Guard 23210 | -6/Cetus | Allies destroyed Cetus Guard 23213 | -6/Cetus | Allies destroyed Cetus Guard 23219 | -6/Cetus | Discovered new exit (range 15) 23237 | -6/Cetus | Met Revision 17 23243 | -6/Cetus | Lost 5 allies 23353 | -6/Cetus | Entered Archives 23353 | -6/Archives | Accompanied by 5 allies 23441 | -6/Archives | Lost 3 allies 23456 | -6/Archives | Discovered new exit (range 16) 23519 | -6/Archives | Discovered new exit (range 16) 23629 | -6/Archives | Discovered new exit (range 16) 24059 | -6/Archives | Build established: Scavenger-Tank 24469 | -6/Archives | Entered Hub_04(d) 24469 | -6/Hub_04(d) | Accompanied by 2 allies 24510 | -6/Hub_04(d) | Garrison activated, responded to threat 24655 | -6/Hub_04(d) | Discovered new exit (range 20) 24657 | -6/Hub_04(d) | Discovered new exit (range 47) 24705 | -6/Hub_04(d) | Spotted B-75 Beast 24877 | -6/Hub_04(d) | Garrison activated, responded to threat 25466 | -6/Hub_04(d) | Garrison activated, responded to threat 25939 | -6/Hub_04(d) | Found Prototype Processor 25939 | -6/Hub_04(d) | Identified Exp. Targeting Computer 26144 | -6/Hub_04(d) | Network Hub disabled 26176 | -6/Hub_04(d) | Spotted Lightning 26177 | -6/Hub_04(d) | Spotted Lightning 26181 | -6/Hub_04(d) | Core integrity fell below 20% 26181 | -6/Hub_04(d) | Spotted Lightning 26181 | -6/Hub_04(d) | Spotted Lightning 26182 | -6/Hub_04(d) | Network Hub disabled 26182 | -6/Hub_04(d) | Spotted Lightning 26200 | -6/Hub_04(d) | System corruption reached 10% 26209 | -6/Hub_04(d) | Spotted Lightning 26210 | -6/Hub_04(d) | Destroyed by S-27 Virus with Autogun Last Messages --------------- 26186_ Penetrated by EMDS Slug. 26189_ A-15 Conveyor exits level. 26190_ Dropped Com. Wheel. 26193_ KE Penetrator destroyed. 26194_ Penetrated by EMDS Slug. 26194_ Com. Wheel destroyed. 26194_ EMDS Slug penetrates Lightning. 26194_ Penetrated by EMDS Slug. 26194_ Chain reaction triggered in Lgt. Angular Momentum Engine. 26194_ G-50 Soldier destroyed. 26195_ Dropped Centrium Heavy Treads. 26196_ EMDS Slug penetrates Wall. 26199_ Penetrated by EMDS Slug. 26201_ System corrupted: Matter fused (-5). 26201_ EMDS Slug penetrates Wall. 26204_ Penetrated by EMDS Slug. 26205_ Critical hit (Destroy). 26206_ Penetrated by EMDS Slug. 26208_ K-01 Serf exits level. 26209_ T-07 Excavator destroyed. Map ----- +----------------------------------------------------+ | #? # """" ## * " ! !# # | | ##?? # """" ## "= " | | ###+###"#####+###+# """" ## ="% | | # """" ## |! | | + ## """"""###""""" | | # T ## "" ## | | ################### ## "" #? | | ??#####???## #????# ## "" " #? | | ??#######################+### =%["" " #? | | ??# # " ! """"""" """ "" #? | | ### " " [[ * %" = """ #? | | + # " = *[ " %! "" ## | | # # " """"""""""" ! " +! | | # " ## =### "" " ## | | +? # ##hh#?# "" ## | | ##? # ##hh#?# ""! ## | | #??? # ! ##h!#?# """"""######## | | #?###+################# %### # %## | | ### ############### =## /! " ## | | "" %h ## /! " ## | | T" ## /! " #! | | #### #####+######### % ## " ! #" | | ???## ## #??##;s%;## " ## | | ###?# ## " " " " #??# ; ;## " ## | | #?# ## " " " " #??# ;%g|#########"##+#"#+###### | | ] #?# ## " " " " #??# ; @%#?????? # ?????# | | ### ## #??#;#ss*#??????"## ????? | | ## # #??## s ????? ???? | | + H # #???# ###????"" ?? | | ## + #???# < #?????? ""A" ? | | ## ###########???# #?????? ^"""" ? | | [###/######??????????##+###?????### """" | | ### #???????????? ?????????+ """" | | #?# """ #????????????""?????????# ????? ""T | | #?# #????????????""?????????# ????? ""? | | #?# """ #????????????"??????????# ???????##?? | | #?# #???????????????????????# ??????????? | | #?#"" #???????????????????????# ???????????? | | #?#"T #????????????????????????? ???????????? | | ??#"" #?????????????????????????????????????? | | ??# !#?????????????????????????????????????? | | ??##########?????????????????????????????????????? | | ?????????????????????????????????????????????????? | | ?????????????????????????????????????????????????? | | ?????????????????????????????????????????????????? | | ?????????????????????????????????????????????????? | | #######??????????????????????A???????????????????? | | #???????????????????????????????????????? | | #######??????????????????????????????????????????? | | #???????????????????????????????????????????????? | +----------------------------------------------------+ Best States ------------- Heat Dissipation 53 Coolant Potential 65 Energy Generation 25 Energy Capacity 515 Matter Stores 300 Matter Capacity 300 Sight Range 20 Robot Scan Range 16 Terrain Scan Density 10 ECM Strength 2 Base Temperature (-) 150 EM Shielding 3 Armor Coverage 900 Evasion (%) 41 Targeting Accuracy 8 Recoil Reduction 3 Offensive Hacking 10 Relay Coupler Types 5 Relay Coupler Value 226 Item Schematics ----------------- Datajack | -9/Materials | Scanalyzed Com. Wheel | -9/Materials | Scanalyzed ECM Suite | -9/Materials | Scanalyzed Huge Storage Unit | -9/Materials | Extracted Sml. Matter Pod | -9/Materials | Extracted Weight Redist. System | -9/Materials | Extracted Lgt. Armor Plating | -9/Materials | Extracted Maul | -9/Materials | Extracted Arm. Wheel | -9/Materials | Extracted Imp. Aluminum Leg | -9/Materials | Extracted Adv. Terrain Scan Processor | -6/Factory | Scanalyzed Remote Datajack | -6/Factory | Scanalyzed F-cell Engine | -6/Factory | Scanalyzed Adv. EMP Blaster | -6/Factory | Scanalyzed Robot Schematics ------------------ None Fabricated ------------ Nothing Repaired ---------- Lgt. Treads | 15% | -10/Materials Lgt. Treads | 17% | -10/Materials Lgt. Treads | 10% | -9/Materials Cld. Ion Engine | 57% | -9/Materials Arm. Wheel | 8% | -8/Materials Arm. Wheel | 24% | -8/Materials Arm. Wheel | 45% | -8/Materials Remote Datajack | 10% | -6/Factory Alien Tech Used ----------------- None Achievements -------------- None Challenges ------------ None Game ------ Seed WeaponGravityMount Manual? 0 Play Time 03:20:35 Cumulative 242.5 hours Start 2025.05.14 @ 22:53:55 End 2025.05.15 @ 23:01:00 Sessions 3 Manual Loads 0 Difficulty Rogue Special Mode None Game No. 116 Rogue 116 Adventurer 0 Explorer 0 Win Type - Total 0 Types 0/0/0/0/0/0/0/0/0/0 Lore% 56 Gallery% 70 Achievement% 61 Wizard Run 0 Options --------- Layout 0 ASCII 0 Keyboard 0 Movement Mouse Keybinds 0 Fullscreen 1 Font 24/Smallcaps Map View 183x50 Zoom Use 0% Tactical HUD 1 Map Filters NONE Filters NONE Steam 0 RUN: c4a89950-68b3-42bb-8714-6f6d4af5497b